{"text_format":"3","workbook":"xlsx","n_sheets":1,"sheets":["importclasse_EPINEGUYON1"],"not_rendered":{"macros":1,"comments":2},"read":"whole","date_system":"1900"}

{"sheet":"importclasse_EPINEGUYON1","index":0,"n_rows":112,"n_cols":22,"rows_kept":112}
["LASTNAME","FIRSTNAME","LOGIN","PASSWORD","PROFIL","EMAIL","NATIONNAL_ID","ESTABLISHMENT_ID","LAN_FOLDER_UNC","DISCIPLINE","GRP1","GRP2","GRP3","GRP4","GRP5","GRP6","GRP7","GRP8","GRP9","GRP10","GRP11","GRP12"]
["BEYLOT","Ema",{"$f":"LEFT((SANSACCENT(LEFT(B2,1) & A2)),8)","v":"EBEYLOT"},"ecole",1,{"$nulls":5},"CE1","CE1-CE2"]
["CHARTRAIN-DECOURTY","Ethan","ECHARTRA","ecole",1,{"$nulls":5},"CE1","CE1-CE2"]
["CLERMONT","CLERMONT","CCLERMON","ecole",1,{"$nulls":5},"CE1","CE1-CE2"]
["FERDJI","Lehna","LFERDJI","ecole",1,{"$nulls":5},"CE1","CE1-CE2"]
["GRAO","Melvin","MGRAO","ecole",1,{"$nulls":5},"CE1","CE1-CE2"]
["LUBOUÉ DERVIN","Jolène","JLUBOUED","ecole",1,{"$nulls":5},"CE1","CE1-CE2"]
["VALLEE","Maëlia","MVALLEE","ecole",1,{"$nulls":5},"CE1","CE1-CE2"]
["VIGNOLES","Talya","TVIGNOLE","ecole",1,{"$nulls":5},"CE1","CE1-CE2"]
["WIRTH","Eloïse","EWIRTH","ecole",1,{"$nulls":5},"CE1","CE1-CE2"]
["ABDOURAZAK","Karim","KABDOURA","ecole",1,{"$nulls":5},"CE2","CE1-CE2"]
["ALBERT","Leane","LALBERT","ecole",1,{"$nulls":5},"CE2","CE1-CE2"]
["ARSENI","Timeo","TARSENI","ecole",1,{"$nulls":5},"CE2","CE1-CE2"]
["BOUTROUÉ-PINÇON","Camille","CBOUTROU","ecole",1,{"$nulls":5},"CE2","CE1-CE2"]
["CAMPISI","Hugault","HCAMPISI","ecole",1,{"$nulls":5},"CE2","CE1-CE2"]
["CHRETIEN","Estelle","ECHRETIE","ecole",1,{"$nulls":5},"CE2","CE1-CE2"]
["COLINET","Emma","ECOLINET","ecole",1,{"$nulls":5},"CE2","CE1-CE2"]
["COLLUMEAU","Adrien","ACOLLUME","ecole",1,{"$nulls":5},"CE2","CE1-CE2"]
["DETTLOFF","Nathan","NDETTLOF","ecole",1,{"$nulls":5},"CE2","CE1-CE2"]
["FERRASSE","Lucas","LFERRASS","ecole",1,{"$nulls":5},"CE2","CE1-CE2"]
["FROUIN-GUANDALINI","Celia","CFROUING","ecole",1,{"$nulls":5},"CE2","CE1-CE2"]
["MANFRINO","Lucie","LMANFRIN","ecole",1,{"$nulls":5},"CE2","CE1-CE2"]
["VOTIER","Davina","DVOTIER","ecole",1,{"$nulls":5},"CE2","CE1-CE2"]
["MENDES","Anton","AMENDES","ecole",1,{"$nulls":5},"CE2","CE2-CM1"]
["PRINCE BECQUIN","Oscar","OPRINCEB","ecole",1,{"$nulls":5},"CE2","CE2-CM1"]
["RAMANA","Maël","MRAMANA","ecole",1,{"$nulls":5},"CE2","CE2-CM1"]
["RENTZ","Kylian","KRENTZ","ecole",1,{"$nulls":5},"CE2","CE2-CM1"]
["AZHAR-EDDINE","Ilian","IAZHARED","ecole",1,{"$nulls":5},"CM1","CE2-CM1"]
["BENS","Tylian","TBENS","ecole",1,{"$nulls":5},"CM1","CE2-CM1"]
["BESCOND","Sebastien","SBESCOND","ecole",1,{"$nulls":5},"CM1","CE2-CM1"]
["BEYLOT","Bastien","BBEYLOT","ecole",1,{"$nulls":5},"CM1","CE2-CM1"]
["COCHAIN","Melyne","MCOCHAIN","ecole",1,{"$nulls":5},"CM1","CE2-CM1"]
["DELANNOY","Marylou","MDELANNO","ecole",1,{"$nulls":5},"CM1","CE2-CM1"]
["ERGUN","Melodi","MERGUN","ecole",1,{"$nulls":5},"CM1","CE2-CM1"]
["HUGOU","Léo","LHUGOU","ecole",1,{"$nulls":5},"CM1","CE2-CM1"]
["IZGI","Yeliz","YIZGI","ecole",1,{"$nulls":5},"CM1","CE2-CM1"]
["LEMUET","Léo","LLEMUET","ecole",1,{"$nulls":5},"CM1","CE2-CM1"]
["LORIOT","Théo","TLORIOT","ecole",1,{"$nulls":5},"CM1","CE2-CM1"]
["MADULI","Valentin","VMADULI","ecole",1,{"$nulls":5},"CM1","CE2-CM1"]
["MARIE-APPOLINE","Noémie","NMARIEAP","ecole",1,{"$nulls":5},"CM1","CE2-CM1"]
["MARTIN","Erika","EMARTIN","ecole",1,{"$nulls":5},"CM1","CE2-CM1"]
["MATHIEU","Yaouen","YMATHIEU","ecole",1,{"$nulls":5},"CM1","CE2-CM1"]
["MEKARBECH DAHOU","Sami","SMEKARBE","ecole",1,{"$nulls":5},"CM1","CE2-CM1"]
["MOUSSY","Renan","RMOUSSY","ecole",1,{"$nulls":5},"CM1","CE2-CM1"]
["RICHARD","Tom","TRICHARD","ecole",1,{"$nulls":5},"CM1","CE2-CM1"]
["ROBIN","Loona","LROBIN","ecole",1,{"$nulls":5},"CM1","CE2-CM1"]
["TASUZAN","Petek","PTASUZAN","ecole",1,{"$nulls":5},"CM1","CE2-CM1"]
["ARSENI","Jessica","JARSENI","ecole",1,{"$nulls":5},"CM2","CM2"]
["BAUTISTA","Kenzo","KBAUTIST","ecole",1,{"$nulls":5},"CM2","CM2"]
["BESCOND","Louis","LBESCOND","ecole",1,{"$nulls":5},"CM2","CM2"]
["CHARTRAIN-DECOURTY","Inès","ICHARTRA","ecole",1,{"$nulls":5},"CM2","CM2"]
["COLLUMEAU","Léo","LCOLLUME","ecole",1,{"$nulls":5},"CM2","CM2"]
["DUBS","Eva","EDUBS","ecole",1,{"$nulls":5},"CM2","CM2"]
["FERRASSE","Nolan","NFERRASS","ecole",1,{"$nulls":5},"CM2","CM2"]
["GARNIER","Ambre","AGARNIER","ecole",1,{"$nulls":5},"CM2","CM2"]
["JARLOT","Tyfenn","TJARLOT","ecole",1,{"$nulls":5},"CM2","CM2"]
["JOIGNEAU","Samuel","SJOIGNEA","ecole",1,{"$nulls":5},"CM2","CM2"]
["MENDÈS","Abigaël",{"$f":"LEFT((SANSACCENT(LEFT(B58,1) & A58)),7)&2","v":"AMENDES2"},"ecole",1,{"$nulls":5},"CM2","CM2"]
["OUZILLEAU","Hugo","HOUZILLE","ecole",1,{"$nulls":5},"CM2","CM2"]
["OWUSU","Rafaela","ROWUSU","ecole",1,{"$nulls":5},"CM2","CM2"]
["PANECHOU","Baptiste","BPANECHO","ecole",1,{"$nulls":5},"CM2","CM2"]
["PANECHOU","Nicolas","NPANECHO","ecole",1,{"$nulls":5},"CM2","CM2"]
["POUJOL","Illian","IPOUJOL","ecole",1,{"$nulls":5},"CM2","CM2"]
["RODRIGUEZ","Maëlia","MRODRIGU","ecole",1,{"$nulls":5},"CM2","CM2"]
["TRIPIER","Valentin","VTRIPIER","ecole",1,{"$nulls":5},"CM2","CM2"]
["VANDEKINDEREN","Elsa","EVANDEKI","ecole",1,{"$nulls":5},"CM2","CM2"]
["VINCENT","Logan","LVINCENT","ecole",1,{"$nulls":5},"CM2","CM2"]
["BODIN","Ethan",{"$f":"LEFT((SANSACCENT(LEFT(B68,1) & A68)),8)","v":"EBODIN"},"ecole",1,{"$nulls":5},"GS","GS-CP"]
["DUSSART","Manon","MDUSSART","ecole",1,{"$nulls":5},"GS","GS-CP"]
["KINKELA","Debora","DKINKELA","ecole",1,{"$nulls":5},"GS","GS-CP"]
["LUBOUÉ DERVIN","Maïleen","MLUBOUED","ecole",1,{"$nulls":5},"GS","GS-CP"]
["MARIE APPOLINE","Nolan",{"$f":"LEFT((SANSACCENT(LEFT(B72,1) & A72)),7)&3","v":"NMARIEA3"},"ecole",1,{"$nulls":5},"GS","GS-CP"]
["TASUZAN","Papatya",{"$f":"LEFT((SANSACCENT(LEFT(B73,1) & A73)),7)&2","v":"PTASUZA2"},"ecole",1,{"$nulls":5},"GS","GS-CP"]
["ALUNNO-CORBUCCI","Mélissa","MALUNNOC","ecole",1,{"$nulls":5},"CP","GS-CP"]
["BAUTISTA","Maëron","MBAUTIST","ecole",1,{"$nulls":5},"CP","GS-CP"]
["BESCOND","Gabriel","GBESCOND","ecole",1,{"$nulls":5},"CP","GS-CP"]
["BESNIER","Zélie","ZBESNIER","ecole",1,{"$nulls":5},"CP","GS-CP"]
["CERDA","Kira","KCERDA","ecole",1,{"$nulls":5},"CP","GS-CP"]
["CHRETIEN","Raphaël","RCHRETIE","ecole",1,{"$nulls":5},"CP","GS-CP"]
["DEDIEU","Lucie","LDEDIEU","ecole",1,{"$nulls":5},"CP","GS-CP"]
["GARNIER","Léo","LGARNIER","ecole",1,{"$nulls":5},"CP","GS-CP"]
["IZGI","Ethem","EIZGI","ecole",1,{"$nulls":5},"CP","GS-CP"]
["RODRIGUEZ","Loris","LRODRIGU","ecole",1,{"$nulls":5},"CP","GS-CP"]
["ROULOT","Rachel","RROULOT","ecole",1,{"$nulls":5},"CP","GS-CP"]
["VANDEKINDEREN","Lea","LVANDEKI","ecole",1,{"$nulls":5},"CP","GS-CP"]
["DILLENSCHNEIDER","Lou","LDILLENS","ecole",1,{"$nulls":5},"CP","CP-CE1"]
["GIBIERGE POIVRE","Ella","EGIBIERG","ecole",1,{"$nulls":5},"CP","CP-CE1"]
["GIERLOWSKI ","Deborah","DGIERLOW","ecole",1,{"$nulls":5},"CP","CP-CE1"]
["GROSSE","Logan","LGROSSE","ecole",1,{"$nulls":5},"CP","CP-CE1"]
["HIROUX","Angus","AHIROUX","ecole",1,{"$nulls":5},"CP","CP-CE1"]
["MARIE-APPOLINE","Noah",{"$f":"LEFT((SANSACCENT(LEFT(B91,1) & A91)),7)&2","v":"NMARIEA2"},"ecole",1,{"$nulls":5},"CP","CP-CE1"]
["TAUPIN","Ange","ATAUPIN","ecole",1,{"$nulls":5},"CP","CP-CE1"]
["VIGNOLES","Lola","LVIGNOLE","ecole",1,{"$nulls":5},"CP","CP-CE1"]
["VOTIER","Thaïs","TVOTIER","ecole",1,{"$nulls":5},"CP","CP-CE1"]
["BAPTISTA","Tino","TBAPTIST","ecole",1,{"$nulls":5},"CE1","CP-CE1"]
["BEAUVAIS","Hugo","HBEAUVAI","ecole",1,{"$nulls":5},"CE1","CP-CE1"]
["CASSAIGNE","Maëlle","MCASSAIG","ecole",1,{"$nulls":5},"CE1","CP-CE1"]
["COQUELET","Chloé","CCOQUELE","ecole",1,{"$nulls":5},"CE1","CP-CE1"]
["DJEDU","Khaïys-Tidiane","KDJEDU","ecole",1,{"$nulls":5},"CE1","CP-CE1"]
["FASSEU","Enaëline","EFASSEU","ecole",1,{"$nulls":5},"CE1","CP-CE1"]
["GORREE","Nolan","NGORREE","ecole",1,{"$nulls":5},"CE1","CP-CE1"]
["IHYAOUI","Mathys","MIHYAOUI","ecole",1,{"$nulls":5},"CE1","CP-CE1"]
["PERES","Mathis","MPERES","ecole",1,{"$nulls":5},"CE1","CP-CE1"]
["ROCHER","Eloïse","EROCHER","ecole",1,{"$nulls":5},"CE1","CP-CE1"]
["THEVENIN","Enzo","ETHEVENI","ecole",1,{"$nulls":5},"CE1","CP-CE1"]
["TIBERGHIEN","Gabrielle","GTIBERGH","ecole",1,{"$nulls":5},"CE1","CP-CE1"]
["RICHARD"," Lucile","RICHARD","Prof01",2,{"$nulls":4},"CE1-CE2"]
["LEMAITRE","Marie","MLEMAITR","Prof01",2,{"$nulls":4},"CE2-CM1"]
["TOURLOURAT","Agnès","ATOURLOU","Prof01",2,{"$nulls":4},"CE2-CM1"]
["BARON","Christine","CBARON","Prof01",2,{"$nulls":4},"CM2"]
["GIRARD","Julie","JGIRARD","Prof01",2,{"$nulls":4},"GS-CP"]
["FAURE","Christelle","CFAURE","Prof01",2,{"$nulls":4},"CP-CE1"]